bitfinex/quotes_BTCUSD_20250314
["timestamp","ask_amount","ask_price","bid_price","bid_amount"]
[1741983165351,0.548361,84554.0,84553.0,2e-07]
[1741983165553,0.623661,84554.0,84553.0,2e-07]
[1741983165768,0.623667,84552.0,84551.0,2e-07]
[1741983166249,0.63220334,84552.0,84551.0,2e-07]
[1741983166449,0.75177837,84552.0,84551.0,2e-07]
[1741983166597,0.63220334,84552.0,84551.0,2e-07]
[1741983166795,0.65419981,84552.0,84551.0,2e-07]
[1741983168451,0.65719981,84552.0,84551.0,2e-07]
[1741983168884,0.6537483,84552.0,84551.0,2e-07]
[1741983169318,0.7886683,84552.0,84551.0,2e-07]
[1741983169670,0.6537483,84552.0,84551.0,2e-07]
[1741983169872,0.7886683,84552.0,84551.0,2e-07]
[1741983170266,0.6537483,84552.0,84551.0,2e-07]
[1741983170672,0.7886683,84552.0,84551.0,2e-07]
[1741983171403,0.6537483,84552.0,84551.0,2e-07]
[1741983171882,0.5784483,84552.0,84551.0,2e-07]
[1741983172338,0.2784483,84552.0,84551.0,2e-07]
[1741983177136,0.2784483,84552.0,84551.0,0.0001698]
[1741983181585,0.0300813,84552.0,84551.0,0.0001698]
[1741983181793,0.0419083,84552.0,84551.0,0.0001698]
[1741983182330,0.0300813,84552.0,84551.0,0.0001698]
[1741983184007,0.01153634,84552.0,84551.0,0.2367128]
[1741983184181,0.01153634,84552.0,84551.0,0.0001698]
[1741983184741,0.24807634,84552.0,84551.0,0.0001698]
[1741983186119,0.25690334,84552.0,84551.0,0.0001698]
[1741983186243,0.24507634,84552.0,84551.0,0.0001698]
[1741983186439,0.25790334,84552.0,84551.0,0.0001698]
[1741983186894,0.25790334,84552.0,84551.0,0.0011698]
[1741983188044,0.02807885,84552.0,84551.0,0.0011698]
[1741983188217,0.02807885,84552.0,84551.0,0.0129968]
[1741983188597,0.01954251,84552.0,84551.0,0.0129968]
[1741983189066,0.01954251,84552.0,84551.0,0.0011698]
[1741983189290,0.01954251,84552.0,84551.0,0.0129968]
[1741983189468,0.01854251,84552.0,84551.0,0.0119968]
[1741983189872,0.01988171,84552.0,84551.0,0.0159968]
[1741983190313,0.01988171,84552.0,84551.0,0.0041698]
[1741983191054,0.02846374,84552.0,84551.0,0.0041698]
[1741983191776,0.04029074,84552.0,84551.0,0.0041698]
[1741983191979,0.42279074,84552.0,84551.0,0.0041698]
[1741983192722,0.42179074,84552.0,84551.0,0.0001698]
[1741983193016,0.42179074,84552.0,84551.0,0.0041698]
[1741983193335,0.42179074,84552.0,84551.0,0.0001698]
[1741983193772,0.42479074,84552.0,84551.0,0.0021698]
[1741983194960,0.44679432,84552.0,84551.0,0.0021698]
[1741983196393,0.42479074,84552.0,84551.0,0.0021698]
[1741983196602,0.72804577,84552.0,84551.0,8e-07]
[1741983196793,0.60847074,84552.0,84551.0,8e-07]
[1741983197113,0.58992823,84552.0,84551.0,8e-07]
[1741983197457,0.58692823,84552.0,84551.0,8e-07]
[1741983197655,0.011828,84544.0,84519.0,1.63488]
[1741983197857,0.55693849,84544.0,84519.0,1.63488]
[1741983198862,0.55693849,84544.0,84520.0,0.02339165]
[1741983199077,0.55693849,84544.0,84543.0,6e-07]
[1741983199693,0.57548607,84544.0,84543.0,6e-07]
[1741983199877,0.57848607,84544.0,84543.0,6e-07]
[1741983200753,0.70998607,84544.0,84543.0,6e-07]
[1741983200976,0.84486607,84544.0,84543.0,6e-07]
[1741983201176,0.86685461,84544.0,84543.0,6e-07]
[1741983201378,0.73197461,84544.0,84543.0,6e-07]
[1741983201595,0.72897461,84544.0,84543.0,6e-07]
[1741983202765,0.84186607,84544.0,84543.0,6e-07]
[1741983202973,0.71298607,84544.0,84543.0,6e-07]
[1741983203182,0.84686607,84544.0,84543.0,6e-07]
[1741983203380,0.87650323,84544.0,84543.0,6e-07]
[1741983203579,0.87750323,84544.0,84543.0,6e-07]
[1741983203779,0.88250323,84544.0,84543.0,6e-07]
[1741983204014,0.89157199,84544.0,84543.0,6e-07]
[1741983204382,0.75669199,84544.0,84543.0,6e-07]
[1741983204575,0.85693483,84544.0,84543.0,6e-07]
[1741983204961,0.72205483,84544.0,84543.0,6e-07]
[1741983205561,0.85693483,84544.0,84543.0,6e-07]
[1741983205772,0.72205483,84544.0,84543.0,6e-07]
[1741983206332,0.85693483,84544.0,84543.0,6e-07]
[1741983207527,0.96569392,84544.0,84543.0,6e-07]
[1741983207748,0.248481,84513.0,84512.0,0.0477]
[1741983207957,0.011832,84512.0,84511.0,0.0008]
[1741983208356,0.0214398,84512.0,84511.0,0.0008]
[1741983209173,0.0214398,84512.0,84511.0,0.0018]
[1741983210677,0.03330137,84512.0,84511.0,0.0018]
[1741983210857,0.05185113,84512.0,84511.0,0.0018]
[1741983213729,0.04001913,84512.0,84511.0,0.0018]
[1741983213933,0.04001913,84512.0,84511.0,0.0019696]
[1741983214717,0.05185113,84512.0,84511.0,0.0019696]
[1741983216788,0.02815756,84512.0,84511.0,0.2386246]
[1741983216993,0.02815756,84512.0,84511.0,0.2504566]
[1741983217171,0.248463,84520.0,84514.0,0.236644]
[1741983217365,0.011831,84518.0,84511.0,0.0019696]
[1741983217575,0.248482,84513.0,84511.0,0.0019696]
[1741983218149,0.00786319,84512.0,84511.0,0.0019696]
[1741983218972,0.00786319,84512.0,84511.0,0.0009696]
[1741983219177,0.00786319,84512.0,84511.0,0.0019696]
[1741983219606,0.00786319,84512.0,84511.0,0.0009696]
[1741983219787,0.00786319,84512.0,84511.0,0.0019696]
[1741983219968,0.0264125,84512.0,84511.0,0.0019696]
[1741983220173,0.0264125,84512.0,84511.0,0.2504566]
[1741983220592,0.01854931,84512.0,84511.0,0.2504566]
[1741983223111,0.01854931,84512.0,84511.0,0.0019696]
[1741983224379,0.03849189,84512.0,84511.0,0.0019696]
[1741983226519,0.02665989,84512.0,84511.0,0.0019696]
[1741983227353,0.02665989,84512.0,84511.0,0.2386246]
[1741983227530,0.02665989,84512.0,84511.0,0.2504566]
[1741983227733,0.01854931,84512.0,84511.0,0.2504566]
[1741983229566,0.01854931,84512.0,84511.0,0.0138016]
[1741983229972,0.01854931,84512.0,84511.0,0.0019696]
[1741983230207,0.03038131,84512.0,84511.0,0.0019696]
[1741983230379,0.03696359,84512.0,84511.0,0.0019696]
[1741983230803,0.10081428,84512.0,84511.0,0.0019696]
[1741983231651,0.10081428,84512.0,84511.0,0.0009696]
[1741983232055,0.10081428,84512.0,84511.0,6e-07]
[1741983232253,0.011833,84507.0,84506.0,0.0001696]
[1741983232453,0.248499,84507.0,84506.0,0.0001696]
[1741983232638,0.25555258,84507.0,84506.0,0.0001696]
[1741983233465,0.011833,84504.0,84500.0,1e-06]
[1741983233670,0.248517,84501.0,84500.0,1e-06]
[1741983233895,0.25552576,84501.0,84500.0,1e-06]
[1741983234418,0.25552576,84501.0,84485.0,0.1276]
[1741983234419,0.248564,84485.0,84477.0,1.5]
[1741983234792,0.25544357,84485.0,84481.0,0.02395826]
[1741983236669,0.25544357,84485.0,84476.0,6e-07]
[1741983237000,0.25544357,84485.0,84480.0,0.02319199]
[1741983237839,0.27399985,84485.0,84480.0,0.02319199]
[1741983238250,0.011836,84484.0,84483.0,2e-07]
[1741983238557,0.01910463,84484.0,84483.0,2e-07]
[1741983240140,0.236757,84475.0,84471.0,6e-07]
[1741983240345,0.011838,84467.0,84466.0,2e-07]
[1741983240771,0.01893339,84467.0,84466.0,2e-07]
[1741983240944,0.03749256,84467.0,84466.0,2e-07]
[1741983241656,0.11599256,84467.0,84466.0,2e-07]
[1741983242260,0.12906763,84467.0,84466.0,2e-07]
[1741983242686,0.24843475,84459.0,84458.0,8e-07]
[1741983243069,0.25547676,84459.0,84458.0,8e-07]
[1741983245324,0.25647676,84459.0,84458.0,8e-07]
[1741983245520,0.25547676,84459.0,84458.0,8e-07]
[1741983246588,0.55547676,84459.0,84458.0,8e-07]
[1741983246856,0.75855054,84459.0,84458.0,8e-07]
[1741983247089,0.89387054,84459.0,84458.0,8e-07]
[1741983247255,0.68327676,84459.0,84458.0,8e-07]
[1741983247857,0.81859676,84459.0,84458.0,8e-07]
[1741983249056,0.011844,84427.0,84426.0,6e-07]
[1741983249254,0.248735,84427.0,84426.0,6e-07]
[1741983249451,0.25618139,84427.0,84426.0,6e-07]
[1741983249673,0.27475112,84427.0,84426.0,6e-07]
[1741983249915,0.28694071,84427.0,84426.0,6e-07]
[1741983250340,0.02601612,84427.0,84426.0,6e-07]
[1741983250828,0.02601612,84427.0,84426.0,0.0118446]
[1741983250992,0.02601612,84427.0,84426.0,0.02756973]
[1741983251187,0.01856973,84427.0,84426.0,0.06814572]
[1741983251394,0.01856973,84427.0,84426.0,0.20714572]
[1741983251618,0.01856973,84427.0,84426.0,1.70714572]
[1741983251779,0.01856973,84427.0,84426.0,1.70596144]
[1741983252803,0.01356973,84427.0,84426.0,1.70596144]
[1741983255930,0.01356973,84427.0,84426.0,1.70596204]
[1741983256174,0.248686,84444.0,84438.0,0.236859]
[1741983256368,0.248703,84438.0,84432.0,0.236876]
[1741983256596,0.248703,84438.0,84432.0,0.248719]
[1741983256747,0.248684,84445.0,84439.0,0.236856]
[1741983256946,0.248684,84445.0,84439.0,0.248698]
[1741983257274,0.011841,84447.0,84441.0,0.011842]
[1741983257504,0.24844052,84454.0,84441.0,0.011842]
[1741983257505,0.27444563,84460.0,84451.0,0.011841]
[1741983257715,0.01184,84456.0,84451.0,0.011841]
[1741983257912,0.01184,84455.0,84449.0,0.011841]
[1741983258047,0.248655,84454.0,84447.0,0.236834]
[1741983258245,0.24866,84453.0,84447.0,0.236834]
[1741983259063,0.248664,84452.0,84446.0,0.011841]
[1741983259338,0.26722728,84452.0,84446.0,0.011841]
[1741983259540,0.01856328,84452.0,84449.0,0.248668]
[1741983259746,0.01856328,84452.0,84450.0,0.011841]
[1741983260461,0.01856328,84452.0,84451.0,0.011841]
[1741983261568,0.01856328,84452.0,84451.0,1.511841]
[1741983261795,0.01856328,84452.0,84445.0,0.011842]
[1741983261796,0.011841,84451.0,84445.0,0.011842]
[1741983262339,0.236832,84448.0,84441.0,6e-07]
[1741983262537,0.236827,84450.0,84441.0,6e-07]
[1741983262916,0.248682,84445.0,84441.0,6e-07]
[1741983263704,0.248682,84445.0,84441.0,0.1381206]
[1741983263944,0.248682,84445.0,84441.0,6e-07]
[1741983264526,0.24869,84442.0,84441.0,6e-07]
[1741983265065,0.248729,84429.0,84428.0,6e-07]
[1741983269497,0.26729644,84429.0,84428.0,6e-07]
[1741983270577,0.011844,84428.0,84427.0,0.0001699]
[1741983273265,0.248735,84427.0,84426.0,1.4687875]
[1741983274051,0.011844,84426.0,84425.0,0.02351624]
[1741983274271,0.011844,84426.0,84425.0,1.52351624]
[1741983274561,0.011844,84426.0,84425.0,0.02351624]
[1741983275620,0.011845,84422.0,84421.0,6e-07]
[1741983275852,0.24875,84422.0,84421.0,6e-07]
[1741983276481,0.23692,84417.0,84415.0,0.1376]
[1741983276686,0.236924,84415.0,84411.0,0.0118466]
[1741983277023,0.236924,84415.0,84412.0,0.13756]
[1741983277525,0.23693,84413.0,84412.0,0.13756]
[1741983277725,0.248775,84414.0,84412.0,0.13752]
[1741983277924,0.24877,84416.0,84412.0,0.13752]
[1741983278150,0.236912,84420.0,84412.0,0.13752]
[1741983278350,0.011844,84424.0,84419.0,0.011845]
[1741983278561,0.011844,84426.0,84420.0,0.011845]
[1741983278766,0.011844,84426.0,84416.0,0.011846]
[1741983278975,0.0121838,84428.0,84421.0,0.011845]
[1741983279182,0.0003398,84428.0,84423.0,0.011845]
[1741983279330,0.248744,84424.0,84419.0,0.236913]
[1741983279543,0.236893,84426.0,84421.0,0.011845]
[1741983279875,0.0003398,84428.0,84423.0,0.2369]
[1741983280303,0.0003398,84428.0,84427.0,0.248735]
[1741983280913,0.01890718,84428.0,84427.0,0.248735]
[1741983281553,0.01890718,84428.0,84427.0,1.748735]
[1741983282173,0.01890718,84428.0,84427.0,0.248735]
[1741983282562,0.01890718,84428.0,84427.0,1.748735]
[1741983283178,0.01890718,84428.0,84427.0,0.386135]
[1741983283495,0.01890718,84428.0,84427.0,0.374291]
[1741983283867,0.01890718,84428.0,84427.0,0.386135]
[1741983286388,0.01890718,84428.0,84427.0,0.41002828]
[1741983286599,1.8e-07,84428.0,84427.0,0.41002888]
[1741983286799,0.0781398,84452.0,84451.0,0.248664]
[1741983286954,0.0003398,84452.0,84451.0,0.248664]
[1741983287160,0.0003398,84452.0,84451.0,0.236823]
[1741983287727,0.0003398,84452.0,84451.0,0.248664]
[1741983289282,0.0003398,84452.0,84451.0,0.2486646]
[1741983291609,0.0003398,84452.0,84451.0,1.7486646]
[1741983291866,0.0003398,84452.0,84451.0,1.76320545]
[1741983293618,8e-07,84452.0,84451.0,1.84930545]
[1741983293821,0.0003396,84467.0,84466.0,0.26316085]
[1741983294012,0.0003396,84467.0,84466.0,0.40044085]
[1741983294334,0.0003396,84467.0,84466.0,1.90044085]
[1741983294535,0.0003396,84467.0,84466.0,1.85044085]
[1741983294793,0.34170663,84490.0,84487.0,0.236721]
[1741983295003,0.0791,84490.0,84489.0,0.236717]
[1741983295164,0.0791,84490.0,84489.0,0.248552]
[1741983295358,0.0791,84490.0,84489.0,0.236717]
[1741983296811,0.01209886,84495.0,84492.0,0.236708]
[1741983297049,0.01855547,84490.0,84487.0,0.13712]
[1741983297217,0.01855547,84490.0,84488.0,0.236717]
[1741983298352,0.01855547,84490.0,84489.0,0.236717]
[1741983298944,0.01855547,84490.0,84481.0,0.236738]
[1741983298945,0.011836,84488.0,84481.0,0.236738]
[1741983299114,0.011836,84488.0,84482.0,0.13704]
[1741983299115,0.236729,84485.0,84482.0,0.13704]
[1741983299300,0.248558,84487.0,84482.0,0.13704]
[1741983299479,0.236717,84489.0,84482.0,0.13704]
[1741983299679,0.01855547,84490.0,84486.0,0.236723]
[1741983300306,0.01855547,84490.0,84482.0,0.13704]
[1741983300508,0.01855547,84490.0,84488.0,0.236717]
[1741983300904,0.236733,84484.0,84480.0,0.236741]
[1741983301150,0.0758,84480.0,84476.0,0.236753]
[1741983301327,0.0758,84480.0,84477.0,0.236748]
[1741983301588,0.0743,84480.0,84477.0,0.236748]
[1741983301862,0.09285639,84480.0,84475.0,0.02387077]
[1741983302106,0.09285639,84480.0,84477.0,0.236748]
[1741983302275,0.09285639,84480.0,84478.0,0.236745]
[1741983303266,0.09285639,84480.0,84477.0,0.236748]
[1741983303692,0.09285639,84480.0,84475.0,0.236755]
[1741983303887,0.32960039,84480.0,84475.0,0.236755]
[1741983304497,0.09285639,84480.0,84476.0,0.236751]
[1741983304694,0.09285639,84480.0,84475.0,0.236755]
[1741983305113,0.34143739,84480.0,84475.0,0.236755]
[1741983305306,0.09285639,84480.0,84477.0,0.23675]
[1741983305508,0.01855639,84480.0,84479.0,0.248582]
[1741983305715,0.047,84493.0,84492.0,0.236708]
[1741983308370,0.047,84493.0,84489.0,0.236715]
[1741983308774,0.06555502,84493.0,84488.0,0.236715]
[1741983309170,0.06555502,84493.0,84489.0,0.236715]
[1741983309672,0.06555502,84493.0,84491.0,0.236709]
[1741983310103,0.01855502,84493.0,84491.0,0.236709]
[1741983312323,0.01845585,84493.0,84491.0,0.236709]
[1741983312977,0.01845585,84493.0,84489.0,0.236715]
[1741983313131,0.01879465,84493.0,84490.0,0.236712]
[1741983313337,0.01879465,84493.0,84487.0,0.23672]
[1741983313705,0.25550265,84493.0,84488.0,0.236717]
[1741983313916,0.011836,84486.0,84478.0,0.0001694]
[1741983314160,0.236739,84482.0,84478.0,0.2369154]
[1741983314309,0.328678,84481.0,84478.0,0.0001694]
[1741983314510,0.011837,84479.0,84478.0,0.0001694]
[1741983318319,0.03039558,84479.0,84478.0,0.0001694]
[1741983319574,0.33039558,84479.0,84478.0,0.0001694]
[1741983319781,0.40919558,84479.0,84478.0,0.0001694]
[1741983319995,0.45879558,84479.0,84478.0,0.0001694]
[1741983321119,0.44695858,84479.0,84478.0,0.0001694]
[1741983322118,0.45879558,84479.0,84478.0,0.0001694]
[1741983322461,0.14695858,84479.0,84478.0,0.0001694]
[1741983323130,0.39554058,84479.0,84478.0,0.0001694]
[1741983329054,0.38370358,84479.0,84478.0,0.0001694]
[1741983329409,0.14695858,84479.0,84478.0,0.0001694]
[1741983331080,0.39554058,84479.0,84478.0,0.0001694]
[1741983332877,0.14695858,84479.0,84478.0,0.0001694]
[1741983333361,0.15879558,84479.0,84478.0,0.0001694]
[1741983334297,0.01855858,84479.0,84478.0,0.0001694]
[1741983334656,0.26714058,84479.0,84478.0,0.0001694]
[1741983335234,0.01855858,84479.0,84478.0,0.0001694]
[1741983335636,0.03039558,84479.0,84478.0,0.0001694]
[1741983335844,0.01855858,84479.0,84478.0,0.0001694]
[1741983337066,0.03039558,84479.0,84478.0,0.0001694]
[1741983347126,0.45109558,84479.0,84478.0,0.0001694]
[1741983347529,0.432537,84479.0,84478.0,0.0001694]
[1741983350597,0.45109724,84479.0,84478.0,0.0001694]
[1741983351218,0.33039724,84479.0,84478.0,0.0001694]
[1741983353594,0.03039724,84479.0,84478.0,0.0001694]
[1741983353804,0.01856024,84479.0,84478.0,0.0001694]
[1741983354837,0.03039724,84479.0,84478.0,0.0001694]
[1741983365326,0.03575405,84479.0,84478.0,0.0001694]
[1741983366358,0.04754634,84479.0,84478.0,0.0001694]
[1741983374871,0.03575405,84479.0,84478.0,0.0001694]
[1741983377457,0.02391705,84479.0,84478.0,0.2487544]
[1741983377659,0.01856024,84479.0,84478.0,0.2487544]
[1741983377871,0.011834,84496.0,84487.0,0.011836]
[1741983378083,0.00530009,84492.0,84488.0,0.23672]
[1741983378287,0.00530009,84492.0,84490.0,0.248546]
[1741983378926,0.00530009,84492.0,84491.0,0.011835]
[1741983379123,0.0003388,84493.0,84491.0,0.011835]
[1741983379124,0.0003388,84493.0,84492.0,0.248543]
[1741983380239,0.0003388,84493.0,84492.0,0.31278445]
[1741983380811,0.01889049,84493.0,84492.0,0.31278445]
[1741983381620,0.01889049,84493.0,84492.0,1.81278445]
[1741983382607,0.01889049,84493.0,84492.0,1.83642291]
[1741983383369,0.01889049,84493.0,84492.0,1.91572291]
[1741983383540,0.01889049,84493.0,84492.0,1.92072291]
[1741983384827,0.26260663,84520.0,84512.0,0.248484]
[1741983385042,0.011831,84519.0,84512.0,0.13508]
[1741983385245,0.236648,84514.0,84512.0,0.13508]
[1741983385395,0.0121716,84513.0,84512.0,0.13508]
[1741983386199,0.0003396,84513.0,84512.0,0.13508]
[1741983386720,0.2488206,84513.0,84512.0,0.13508]
[1741983386919,0.248496,84508.0,84507.0,6e-07]
[1741983388089,0.26036125,84508.0,84507.0,6e-07]
[1741983388407,0.26036125,84508.0,84471.0,0.248604]
[1741983388408,0.011836,84484.0,84483.0,0.13508]
[1741983388981,0.02347549,84484.0,84483.0,0.13508]
[1741983389217,0.011837,84479.0,84472.0,0.02352661]
[1741983389550,0.25390966,84479.0,84478.0,4e-07]
[1741983389790,0.25386966,84479.0,84478.0,4e-07]
[1741983390415,0.33626966,84479.0,84478.0,4e-07]
[1741983390971,0.63626966,84479.0,84478.0,4e-07]
[1741983392069,0.43502766,84479.0,84456.0,6e-07]
[1741983392297,0.43502766,84479.0,84405.0,1e-06]
[1741983392298,0.066847,84406.0,84405.0,1e-06]
[1741983392496,0.303796,84406.0,84405.0,1e-06]
[1741983392695,0.298796,84406.0,84405.0,1e-06]
[1741983393125,0.31736983,84406.0,84405.0,1e-06]
[1741983393361,0.066848,84400.0,84399.0,6e-07]
[1741983394401,0.066848,84400.0,84391.0,0.0008]
[1741983394402,0.066849,84392.0,84391.0,1e-07]
[1741983397512,0.08542682,84392.0,84391.0,1e-07]
[1741983397829,0.03542682,84392.0,84391.0,1e-07]
[1741983398058,0.08542682,84392.0,84391.0,1e-07]
[1741983400899,0.02357782,84392.0,84391.0,0.0118491]
[1741983401136,0.07357782,84392.0,84391.0,1e-07]
[1741983401336,0.02357782,84392.0,84391.0,1e-07]
[1741983401600,0.08542682,84392.0,84391.0,1.5000001]
[1741983402194,0.08542682,84392.0,84391.0,1.5000001]
[1741983402518,0.06857782,84392.0,84391.0,1.5000001]
[1741983402946,0.06857782,84392.0,84391.0,1.7369921]
[1741983403143,0.01857782,84392.0,84391.0,1.7488411]
[1741983403553,0.06857782,84392.0,84391.0,1.5000001]
[1741983403967,0.01857782,84392.0,84391.0,1.5000001]
[1741983405171,0.06857782,84392.0,84391.0,1.5000001]
[1741983405789,0.01857782,84392.0,84391.0,1.5000001]
[1741983406438,0.06857782,84392.0,84391.0,1.5000001]
[1741983406639,0.01857782,84392.0,84391.0,1.7488411]
[1741983407565,0.01857782,84392.0,84391.0,1.7490106]
[1741983408061,0.31741582,84392.0,84391.0,1.5001696]
[1741983408265,0.31741582,84392.0,84391.0,0.0001696]
[1741983408462,0.32241582,84392.0,84391.0,0.0001696]
[1741983408977,0.303838,84392.0,84391.0,0.0001696]
[1741983410431,0.731338,84392.0,84391.0,0.0001696]
[1741983410597,0.731338,84392.0,84390.0,0.0128674]
[1741983410598,0.366849,84391.0,84390.0,1e-06]
[1741983410789,0.06685,84382.0,84381.0,6e-07]
[1741983411110,0.60389,84374.0,84362.0,0.035]
[1741983411436,0.553923,84363.0,84362.0,1e-06]
[1741983411581,0.679523,84363.0,84362.0,1e-06]
[1741983412990,0.69810861,84363.0,84362.0,1e-06]
[1741983413317,0.70975146,84363.0,84362.0,1e-06]
[1741983413960,0.75925146,84363.0,84362.0,1e-06]
[1741983414197,1.01462649,84363.0,84362.0,1e-06]
[1741983414540,0.99604088,84363.0,84362.0,1e-06]
[1741983415305,0.86024088,84363.0,84362.0,1e-06]
[1741983415513,0.87642585,84363.0,84362.0,1e-06]
[1741983417359,0.87634585,84363.0,84362.0,1e-06]
[1741983417488,0.74066585,84363.0,84362.0,1e-06]
[1741983417692,0.89489372,84363.0,84362.0,1e-06]
[1741983418811,0.75925372,84363.0,84362.0,1e-06]
[1741983419740,0.26065787,84363.0,84362.0,0.0001706]
[1741983420031,0.27251087,84363.0,84362.0,0.0001706]
[1741983420233,0.07358787,84363.0,84362.0,0.0001706]
[1741983420376,0.02358787,84363.0,84362.0,0.0120236]
[1741983420575,0.01858787,84363.0,84362.0,0.0001706]
[1741983420993,0.01858787,84363.0,84362.0,0.0120236]
[1741983422020,0.01858787,84363.0,84362.0,0.02656445]
[1741983422218,0.011853,84362.0,84361.0,1.5]
[1741983422419,0.603956,84352.0,84351.0,0.0008]
[1741983423199,0.61602816,84352.0,84351.0,0.0008]
[1741983423397,0.63461606,84352.0,84351.0,0.0008]
[1741983423601,0.6225439,84352.0,84351.0,0.0008]
[1741983425652,0.6975439,84352.0,84351.0,1e-06]
[1741983425875,0.728656,84352.0,84351.0,1e-06]
[1741983426037,0.76085433,84352.0,84351.0,1e-06]
[1741983426647,0.304062,84316.0,84315.0,0.02209804]
[1741983427930,0.01186,84315.0,84311.0,0.0008]
[1741983428144,0.01686,84315.0,84311.0,0.0008]
[1741983428352,0.06686,84315.0,84311.0,0.0008]
[1741983428497,0.10516494,84315.0,84311.0,0.0008]
[1741983428900,0.15845504,84315.0,84311.0,0.0008]
[1741983429098,0.10845504,84315.0,84311.0,0.0008]
[1741983429307,0.15845504,84315.0,84311.0,0.0008]
[1741983430012,0.10845504,84315.0,84311.0,0.0008]
[1741983430413,0.12375874,84315.0,84311.0,0.0008]
[1741983430979,0.0354538,84315.0,84311.0,0.0008]
[1741983431150,0.07375874,84315.0,84311.0,0.0008]
[1741983431558,0.0354538,84315.0,84311.0,0.0008]
[1741983431771,0.0854538,84315.0,84311.0,0.0008]
[1741983432396,0.12375874,84315.0,84311.0,0.0008]
[1741983433520,0.0854538,84315.0,84311.0,0.0008]
[1741983433716,0.0735938,84315.0,84311.0,0.0008]
[1741983433872,0.0235938,84315.0,84314.0,0.2492376]
[1741983434072,0.0185938,84315.0,84314.0,0.2492376]
[1741983434680,0.355,84322.0,84320.0,0.237191]
[1741983434902,0.355,84322.0,84320.0,0.24905]
[1741983435185,0.05,84322.0,84321.0,0.011859]
[1741983435391,0.005,84323.0,84322.0,0.237186]
[1741983436087,0.3,84326.0,84325.0,0.249035]
[1741983436449,0.05,84326.0,84325.0,0.249035]
[1741983436656,0.005,84328.0,84327.0,0.249029]
[1741983436834,0.055,84331.0,84330.0,0.249021]
[1741983437018,0.05,84332.0,84331.0,0.23716]
[1741983437491,0.005,84333.0,84331.0,0.23716]
[1741983437642,0.05,84332.0,84329.0,0.237166]
[1741983437842,0.06859055,84332.0,84329.0,0.237166]
[1741983438042,0.01859055,84332.0,84330.0,0.237161]
[1741983438245,0.06859055,84332.0,84330.0,0.237161]
[1741983438469,0.01859055,84332.0,84331.0,0.011858]
[1741983439080,0.01859055,84332.0,84330.0,0.237161]
[1741983439281,0.237178,84325.0,84315.0,0.42646]
[1741983439485,0.06686,84315.0,84314.0,0.0001696]
[1741983440091,0.38545411,84315.0,84314.0,0.0001696]
[1741983440894,0.42633779,84315.0,84314.0,0.0001696]
[1741983441298,0.46400909,84315.0,84314.0,0.0001696]
[1741983441521,0.38545411,84315.0,84314.0,0.0001696]
[1741983442947,0.07359411,84315.0,84314.0,0.0001696]
[1741983443248,0.01859411,84315.0,84314.0,0.2492376]
[1741983443602,0.01859411,84315.0,84314.0,0.22590427]
[1741983444636,0.01859411,84315.0,84314.0,0.26278212]
[1741983444838,0.055,84322.0,84319.0,0.011859]
[1741983445040,0.005,84322.0,84319.0,0.011859]
[1741983445304,0.055,84322.0,84319.0,0.011859]
[1741983445490,0.055,84322.0,84318.0,0.237194]
[1741983445817,0.304047,84322.0,84318.0,0.237194]
[1741983446057,0.304047,84322.0,84316.0,0.01186]
[1741983446258,0.011859,84319.0,84314.0,0.22607377]
[1741983446462,0.24906,84317.0,84314.0,0.0001695]
[1741983446660,0.237196,84319.0,84314.0,0.0001695]
[1741983446862,0.05,84322.0,84319.0,0.011859]
[1741983447078,0.05,84322.0,84320.0,0.237191]
[1741983447442,0.055,84322.0,84319.0,0.011859]
[1741983447642,0.055,84322.0,84318.0,0.237195]
[1741983447643,0.066859,84322.0,84318.0,0.237197]
[1741983447847,0.066859,84322.0,84315.0,0.237205]
[1741983447848,0.249047,84321.0,84315.0,0.237205]
[1741983448043,0.07359216,84322.0,84316.0,0.237202]
[1741983448243,0.06859216,84322.0,84320.0,0.237189]
[1741983448456,0.06859216,84322.0,84320.0,0.249048]
[1741983448793,0.07359216,84322.0,84320.0,0.249048]
[1741983449218,0.07359216,84322.0,84321.0,0.011859]
[1741983449338,0.06859216,84322.0,84321.0,0.011859]
[1741983449535,0.01859216,84322.0,84321.0,0.011859]
[1741983450675,0.01855216,84322.0,84321.0,0.011859]
[1741983451736,0.01855216,84322.0,84321.0,1.511859]
[1741983452062,0.01855216,84322.0,84321.0,0.011859]
[1741983452674,0.01855216,84322.0,84321.0,1.511859]
[1741983453189,0.01855216,84322.0,84321.0,1.52639985]
[1741983453383,0.01855216,84322.0,84321.0,1.94099985]
[1741983453783,0.01855216,84322.0,84321.0,2.08015985]
[1741983454900,0.01855216,84322.0,84321.0,0.58015985]
[1741983455095,0.01855216,84322.0,84321.0,0.55368]
[1741983455323,0.01855216,84322.0,84321.0,0.13908]
[1741983455802,0.01855216,84322.0,84321.0,0.150939]
[1741983456126,0.01855216,84322.0,84321.0,0.011859]
[1741983456328,0.01855216,84322.0,84321.0,0.150899]
[1741983457191,0.01855216,84322.0,84321.0,0.13904]
[1741983458243,0.01855216,84322.0,84321.0,0.1392096]
[1741983458420,0.01889136,84322.0,84321.0,0.1392096]
[1741983458808,0.01889136,84322.0,84321.0,0.0001696]
[1741983459384,0.01889136,84322.0,84321.0,0.0120286]
[1741983461995,0.01889136,84322.0,84321.0,1.5120286]
[1741983465295,0.01889136,84322.0,84321.0,1.5001696]
[1741983466027,0.26793636,84322.0,84321.0,0.0001696]
[1741983466195,0.2543842,84322.0,84321.0,0.0001696]
[1741983466396,0.3043842,84322.0,84321.0,0.0001696]
[1741983469310,0.32297612,84322.0,84321.0,0.0001696]
[1741983470291,0.27297612,84322.0,84321.0,0.0001696]
[1741983470498,0.32297612,84322.0,84321.0,0.0001696]
[1741983470684,0.07393112,84322.0,84321.0,0.0001696]
[1741983470873,0.07393112,84322.0,84321.0,0.0120286]
[1741983470874,0.01893112,84322.0,84321.0,0.0120286]
[1741983471226,0.01893112,84322.0,84321.0,1.5120286]
[1741983471944,0.01893112,84322.0,84321.0,1.5001696]
[1741983472382,0.03079012,84322.0,84321.0,1.5001696]
[1741983472738,0.03079012,84322.0,84321.0,0.0001696]
[1741983476592,0.01893112,84322.0,84321.0,0.0001696]
[1741983476769,0.01893112,84322.0,84321.0,0.0120286]
[1741983477149,0.01893112,84322.0,84321.0,0.0001696]
[1741983477916,0.01893112,84322.0,84321.0,0.0120286]
[1741983478252,0.01893112,84322.0,84321.0,0.03617904]